[Event "Live Chess"]
[Site "Chess.com"]
[Date "2023.05.21"]
[Round "-"]
[White "AbilifyXL"]
[Black "luckywookie"]
[Result "1-0"]
[WhiteElo "1941"]
[BlackElo "767"]
[TimeControl "300"]
[EndTime "16:40:02 PDT"]
[Termination "AbilifyXL won by checkmate"]

1. d4 {[%clk 0:04:58.8]} 1... d5 {[%clk 0:04:57.2]} 2. c4 {[%clk 0:04:58.3]}
2... c6 {[%clk 0:04:55.9]} 3. Nc3 {[%clk 0:04:58.2]} 3... Nf6 {[%clk 0:04:53]}
4. cxd5 {[%clk 0:04:58.1]} 4... cxd5 {[%clk 0:04:51.5]} 5. Nf3 {[%clk
0:04:57.3]} 5... e6 {[%clk 0:04:45.9]} 6. Bg5 {[%clk 0:04:55.1]} 6... Nbd7
{[%clk 0:04:43.1]} 7. e3 {[%clk 0:04:54.3]} 7... Bb4 {[%clk 0:04:39.7]} 8. Bxf6
{[%clk 0:04:53.3]} 8... Nxf6 {[%clk 0:04:38]} 9. Qa4+ {[%clk 0:04:52.2]} 9...
Bd7 {[%clk 0:04:33.7]} 10. Qxb4 {[%clk 0:04:51.2]} 10... Ne4 {[%clk 0:04:32.3]}
11. Nxe4 {[%clk 0:04:49]} 11... dxe4 {[%clk 0:04:31.5]} 12. Bb5 {[%clk
0:04:47.7]} 12... Rc8 {[%clk 0:04:22.2]} 13. Ne5 {[%clk 0:04:44.3]} 13... Bxb5
{[%clk 0:04:19.9]} 14. Qxb5+ {[%clk 0:04:43.4]} 14... Kf8 {[%clk 0:04:15.7]} 15.
O-O {[%clk 0:04:42.4]} 15... f6 {[%clk 0:04:11.5]} 16. Nd7+ {[%clk 0:04:40.4]}
16... Kf7 {[%clk 0:04:04.7]} 17. Nc5 {[%clk 0:04:38.5]} 17... Re8 {[%clk
0:03:58.3]} 18. Qxb7+ {[%clk 0:04:36.9]} 18... Kg8 {[%clk 0:03:54.6]} 19. Qxe4
{[%clk 0:04:34.7]} 19... Rc7 {[%clk 0:03:36.9]} 20. Nd3 {[%clk 0:04:27.7]} 20...
Rc2 {[%clk 0:03:21.4]} 21. Rad1 {[%clk 0:04:25.2]} 21... Re7 {[%clk 0:03:16.4]}
22. Rc1 {[%clk 0:04:23.3]} 22... Rxc1 {[%clk 0:03:10.6]} 23. Rxc1 {[%clk
0:04:22.1]} 23... Rc7 {[%clk 0:03:01]} 24. Qxe6+ {[%clk 0:04:20.1]} 24... Kh8
{[%clk 0:02:52.2]} 25. Rxc7 {[%clk 0:04:14.7]} 25... h5 {[%clk 0:02:43.5]} 26.
Rc8 {[%clk 0:04:13.2]} 26... Qxc8 {[%clk 0:02:40.4]} 27. Qxc8+ {[%clk
0:04:13.1]} 27... Kh7 {[%clk 0:02:39]} 28. Qf5+ {[%clk 0:04:12.6]} 28... g6
{[%clk 0:02:37.6]} 29. Qxf6 {[%clk 0:04:11.7]} 29... Kh6 {[%clk 0:02:36.9]} 30.
Ne5 {[%clk 0:04:10.8]} 30... h4 {[%clk 0:02:33.6]} 31. Qxg6# {[%clk 0:04:09.9]}
1-0

[Event "Live Chess"]
[Site "Chess.com"]
[Date "2023.05.21"]
[Round "-"]
[White "sebmoran1"]
[Black "mattihelenius2"]
[Result "1-0"]
[WhiteElo "1357"]
[BlackElo "489"]
[TimeControl "300"]
[EndTime "16:40:06 PDT"]
[Termination "sebmoran1 won by checkmate"]

1. e4 {[%clk 0:04:57.4]} 1... e5 {[%clk 0:04:59.3]} 2. Bc4 {[%clk 0:04:53.1]}
2... Nc6 {[%clk 0:04:59.2]} 3. Qf3 {[%clk 0:04:51.4]} 3... Qf6 {[%clk
0:04:58.5]} 4. Qb3 {[%clk 0:04:47.4]} 4... Nd4 {[%clk 0:04:53.4]} 5. Qd3 {[%clk
0:04:40]} 5... Bc5 {[%clk 0:04:40.9]} 6. c3 {[%clk 0:04:28.6]} 6... d6 {[%clk
0:04:18.7]} 7. cxd4 {[%clk 0:04:25.3]} 7... Bxd4 {[%clk 0:04:17.7]} 8. Nf3
{[%clk 0:04:23.7]} 8... Bg4 {[%clk 0:04:15.1]} 9. Nc3 {[%clk 0:04:18.2]} 9...
Bxf3 {[%clk 0:04:13.6]} 10. Qxf3 {[%clk 0:04:18.1]} 10... Qxf3 {[%clk 0:04:12]}
11. gxf3 {[%clk 0:04:18]} 11... Nf6 {[%clk 0:04:09.3]} 12. Nb5 {[%clk
0:04:15.9]} 12... O-O {[%clk 0:04:05.2]} 13. Nxd4 {[%clk 0:04:12.4]} 13... exd4
{[%clk 0:04:03.8]} 14. d3 {[%clk 0:04:09.4]} 14... Rae8 {[%clk 0:03:59.9]} 15.
Bg5 {[%clk 0:04:06.3]} 15... c6 {[%clk 0:03:44.1]} 16. Bxf6 {[%clk 0:04:04.7]}
16... d5 {[%clk 0:03:42.3]} 17. O-O-O {[%clk 0:04:04.6]} 17... dxc4 {[%clk
0:03:40.8]} 18. Bxd4 {[%clk 0:04:01.3]} 18... b6 {[%clk 0:03:30.8]} 19. Rdg1
{[%clk 0:03:58.6]} 19... c5 {[%clk 0:03:30]} 20. Rxg7+ {[%clk 0:03:55.8]} 20...
Kh8 {[%clk 0:03:25.1]} 21. Rxf7+ {[%clk 0:03:55.3]} 21... Kg8 {[%clk 0:03:15.6]}
22. Rg7+ {[%clk 0:03:50.1]} 22... Kh8 {[%clk 0:03:08.3]} 23. Re7+ {[%clk
0:03:48.7]} 23... Kg8 {[%clk 0:03:03]} 24. Rg1# {[%clk 0:03:48.2]} 1-0

[Event "Live Chess"]
[Site "Chess.com"]
[Date "2023.05.21"]
[Round "-"]
[White "LL220284LL"]
[Black "manthanit"]
[Result "1-0"]
[WhiteElo "2375"]
[BlackElo "1039"]
[TimeControl "300"]
[EndTime "16:40:10 PDT"]
[Termination "LL220284LL won by resignation"]

1. e3 {[%clk 0:04:59.2]} 1... e6 {[%clk 0:04:59.3]} 2. d4 {[%clk 0:04:58.3]}
2... d5 {[%clk 0:04:58.9]} 3. c4 {[%clk 0:04:58.2]} 3... c5 {[%clk 0:04:58]} 4.
Nf3 {[%clk 0:04:58.1]} 4... dxc4 {[%clk 0:04:57]} 5. Bxc4 {[%clk 0:04:56.9]}
5... cxd4 {[%clk 0:04:54.6]} 6. exd4 {[%clk 0:04:56.8]} 6... Bd7 {[%clk
0:04:52.7]} 7. O-O {[%clk 0:04:56]} 7... Nc6 {[%clk 0:04:52.2]} 8. Nc3 {[%clk
0:04:54.8]} 8... Bb4 {[%clk 0:04:51.5]} 9. a3 {[%clk 0:04:53]} 9... Bxc3 {[%clk
0:04:49.6]} 10. bxc3 {[%clk 0:04:52.9]} 10... Nf6 {[%clk 0:04:47.5]} 11. Bd3
{[%clk 0:04:51.4]} 11... Ne7 {[%clk 0:04:28.5]} 12. Re1 {[%clk 0:04:48.8]} 12...
Ng6 {[%clk 0:04:26.5]} 13. Bb2 {[%clk 0:04:45]} 13... O-O {[%clk 0:04:24.8]} 14.
c4 {[%clk 0:04:44.1]} 14... Bc6 {[%clk 0:04:21.9]} 15. Ne5 {[%clk 0:04:39.1]}
15... Nxe5 {[%clk 0:04:15.9]} 16. Rxe5 {[%clk 0:04:39]} 16... b5 {[%clk
0:04:07.9]} 17. d5 {[%clk 0:04:34]} 17... exd5 {[%clk 0:04:05.1]} 18. cxd5
{[%clk 0:04:31]} 18... Nxd5 {[%clk 0:03:47.8]} 19. Bxh7+ {[%clk 0:03:43]} 19...
Kxh7 {[%clk 0:03:44.8]} 20. Rh5+ {[%clk 0:03:41.3]} 20... Kg8 {[%clk 0:03:43.8]}
21. Bxg7 {[%clk 0:03:39.4]} 21... Nf6 {[%clk 0:03:32.9]} 22. Bxf6 {[%clk
0:03:29.6]} 22... Qxf6 {[%clk 0:03:28.8]} 23. Qg4+ {[%clk 0:03:28.8]} 23... Qg6
{[%clk 0:03:14.7]} 24. Rg5 {[%clk 0:03:27.9]} 24... Qxg5 {[%clk 0:03:14.4]} 25.
Qxg5+ {[%clk 0:03:27.8]} 25... Kh7 {[%clk 0:03:11.9]} 26. Rc1 {[%clk 0:03:23.1]}
26... Rac8 {[%clk 0:03:09.1]} 27. Rc3 {[%clk 0:03:21.6]} 1-0

[Event "Live Chess"]
[Site "Chess.com"]
[Date "2023.05.21"]
[Round "-"]
[White "LiamClery2020"]
[Black "educatedlad"]
[Result "1-0"]
[WhiteElo "2062"]
[BlackElo "1615"]
[TimeControl "300"]
[EndTime "16:40:37 PDT"]
[Termination "LiamClery2020 won by resignation"]

1. e3 {[%clk 0:04:59.8]} 1... e6 {[%clk 0:04:59.2]} 2. d4 {[%clk 0:04:59]} 2...
d5 {[%clk 0:04:57.5]} 3. Nf3 {[%clk 0:04:53.1]} 3... Nf6 {[%clk 0:04:51.4]} 4.
c4 {[%clk 0:04:51.7]} 4... Bb4+ {[%clk 0:04:48.8]} 5. Nc3 {[%clk 0:04:50.9]}
5... O-O {[%clk 0:04:47.1]} 6. Bd2 {[%clk 0:04:49]} 6... c5 {[%clk 0:04:45.1]}
7. Bd3 {[%clk 0:04:47.8]} 7... Nbd7 {[%clk 0:04:43]} 8. O-O {[%clk 0:04:45.1]}
8... Bxc3 {[%clk 0:04:41.5]} 9. Bxc3 {[%clk 0:04:44.2]} 9... Ne4 {[%clk
0:04:41]} 10. Qc2 {[%clk 0:04:40.2]} 10... f5 {[%clk 0:04:38.1]} 11. dxc5 {[%clk
0:04:39.3]} 11... Ndxc5 {[%clk 0:04:35.4]} 12. Rad1 {[%clk 0:04:37.7]} 12...
Nxd3 {[%clk 0:04:34]} 13. Qxd3 {[%clk 0:04:36.8]} 13... b6 {[%clk 0:04:26.7]}
14. cxd5 {[%clk 0:04:31.9]} 14... exd5 {[%clk 0:04:24.6]} 15. Qxd5+ {[%clk
0:04:31]} 15... Qxd5 {[%clk 0:04:23.1]} 16. Rxd5 {[%clk 0:04:30.9]} 16... Be6
{[%clk 0:04:19]} 17. Re5 {[%clk 0:04:25.9]} 17... Bxa2 {[%clk 0:04:15.9]} 18.
Re7 {[%clk 0:04:22.1]} 18... Bf7 {[%clk 0:04:12.8]} 19. Bd4 {[%clk 0:04:18.7]}
19... g6 {[%clk 0:04:03.5]} 20. Rc1 {[%clk 0:04:16.9]} 20... Rac8 {[%clk
0:04:00]} 21. Rcc7 {[%clk 0:04:14.1]} 21... a5 {[%clk 0:03:47.5]} 22. Rxf7
{[%clk 0:04:10]} 22... Rxf7 {[%clk 0:03:35.3]} 23. Rxc8+ {[%clk 0:04:08.9]}
23... Rf8 {[%clk 0:03:33.4]} 24. Rxf8+ {[%clk 0:04:08.2]} 24... Kxf8 {[%clk
0:03:33]} 25. Bxb6 {[%clk 0:04:08.1]} 25... a4 {[%clk 0:03:30.3]} 26. Kf1 {[%clk
0:04:07.6]} 1-0

[Event "Live Chess"]
[Site "Chess.com"]
[Date "2023.05.21"]
[Round "-"]
[White "LodeshChess"]
[Black "DerbyKnight"]
[Result "0-1"]
[WhiteElo "1138"]
[BlackElo "1546"]
[TimeControl "300"]
[EndTime "16:40:46 PDT"]
[Termination "DerbyKnight won by resignation"]

1. e4 {[%clk 0:04:58.7]} 1... c6 {[%clk 0:04:57.7]} 2. Nf3 {[%clk 0:04:57]} 2...
d5 {[%clk 0:04:56.7]} 3. d3 {[%clk 0:04:56.8]} 3... Bg4 {[%clk 0:04:51.7]} 4.
exd5 {[%clk 0:04:54.8]} 4... cxd5 {[%clk 0:04:50.6]} 5. Be2 {[%clk 0:04:52.8]}
5... Nc6 {[%clk 0:04:49.1]} 6. h3 {[%clk 0:04:50.9]} 6... Bh5 {[%clk 0:04:47.5]}
7. O-O {[%clk 0:04:49.5]} 7... Nf6 {[%clk 0:04:45.5]} 8. Ne5 {[%clk 0:04:42.6]}
8... Bxe2 {[%clk 0:04:42.6]} 9. Qxe2 {[%clk 0:04:41.7]} 9... Nxe5 {[%clk
0:04:40.1]} 10. Qxe5 {[%clk 0:04:40.8]} 10... e6 {[%clk 0:04:39.1]} 11. Bg5
{[%clk 0:04:38.7]} 11... Be7 {[%clk 0:04:37.7]} 12. Nd2 {[%clk 0:04:27]} 12...
h6 {[%clk 0:04:36]} 13. Bxf6 {[%clk 0:04:17.8]} 13... Bxf6 {[%clk 0:04:34.3]}
14. Qg3 {[%clk 0:04:14]} 14... O-O {[%clk 0:04:21.1]} 15. Rab1 {[%clk 0:04:10]}
15... Rc8 {[%clk 0:04:13.4]} 16. c3 {[%clk 0:04:06.9]} 16... Bh4 {[%clk
0:04:00.1]} 17. Qf4 {[%clk 0:03:53.5]} 17... Bg5 {[%clk 0:03:56]} 18. Qg4 {[%clk
0:03:34.2]} 18... Bxd2 {[%clk 0:03:53.8]} 19. Rbd1 {[%clk 0:03:33.8]} 19... Qg5
{[%clk 0:03:43.8]} 20. Qe2 {[%clk 0:03:15.3]} 20... Bf4 {[%clk 0:03:38.4]} 21.
d4 {[%clk 0:03:09.1]} 21... a6 {[%clk 0:03:33.9]} 22. a3 {[%clk 0:03:06.9]}
22... Bd6 {[%clk 0:03:24.9]} 23. b4 {[%clk 0:03:04.9]} 23... Rxc3 {[%clk
0:03:18.8]} 24. Rd3 {[%clk 0:02:56.6]} 24... Rfc8 {[%clk 0:03:12.6]} 25. Rg3
{[%clk 0:02:45.1]} 25... Bxg3 {[%clk 0:03:00.5]} 26. fxg3 {[%clk 0:02:44.2]} 0-1

[Event "Live Chess"]
[Site "Chess.com"]
[Date "2023.05.21"]
[Round "-"]
[White "CeladonFish"]
[Black "JoshMcK"]
[Result "0-1"]
[WhiteElo "1114"]
[BlackElo "1521"]
[TimeControl "300"]
[EndTime "16:41:10 PDT"]
[Termination "JoshMcK won by resignation"]

1. d4 {[%clk 0:04:57.9]} 1... d5 {[%clk 0:04:54]} 2. c4 {[%clk 0:04:57.2]} 2...
e6 {[%clk 0:04:52.6]} 3. Nc3 {[%clk 0:04:56.6]} 3... Nf6 {[%clk 0:04:52]} 4. Bf4
{[%clk 0:04:55.8]} 4... a6 {[%clk 0:04:43.7]} 5. e3 {[%clk 0:04:54.2]} 5... Nbd7
{[%clk 0:04:40.7]} 6. Nf3 {[%clk 0:04:53.5]} 6... Be7 {[%clk 0:04:40]} 7. Be2
{[%clk 0:04:52.3]} 7... O-O {[%clk 0:04:39.6]} 8. O-O {[%clk 0:04:51.8]} 8...
Nh5 {[%clk 0:04:22.3]} 9. Be5 {[%clk 0:04:46.8]} 9... Nxe5 {[%clk 0:04:20.5]}
10. Nxe5 {[%clk 0:04:45.8]} 10... f6 {[%clk 0:04:17.1]} 11. Bxh5 {[%clk
0:04:28.2]} 11... fxe5 {[%clk 0:04:16]} 12. dxe5 {[%clk 0:04:27.4]} 12... dxc4
{[%clk 0:04:12.2]} 13. Qd4 {[%clk 0:04:21.3]} 13... b5 {[%clk 0:04:03.8]} 14. a4
{[%clk 0:04:17.4]} 14... Qxd4 {[%clk 0:04:00.4]} 15. exd4 {[%clk 0:04:16.1]}
15... Bb7 {[%clk 0:03:54.8]} 16. axb5 {[%clk 0:04:14.3]} 16... axb5 {[%clk
0:03:53]} 17. Nxb5 {[%clk 0:04:13.4]} 17... c5 {[%clk 0:03:39]} 18. dxc5 {[%clk
0:04:10.9]} 18... Bxc5 {[%clk 0:03:37.6]} 19. Be2 {[%clk 0:04:03.7]} 19... Rxa1
{[%clk 0:03:35.9]} 20. Rxa1 {[%clk 0:04:02.3]} 20... Bxf2+ {[%clk 0:03:34.9]}
21. Kf1 {[%clk 0:03:58.2]} 21... Bh4+ {[%clk 0:03:29.2]} 22. Kg1 {[%clk
0:03:56.1]} 22... Rf2 {[%clk 0:03:24.9]} 23. Bxc4 {[%clk 0:03:52.4]} 23... Rxg2+
{[%clk 0:03:18.8]} 24. Kf1 {[%clk 0:03:49.9]} 24... Rf2+ {[%clk 0:03:12.6]} 25.
Ke1 {[%clk 0:03:43.5]} 25... Rc2+ {[%clk 0:03:03.4]} 26. Kd1 {[%clk 0:03:40]}
26... Rxc4 {[%clk 0:03:02.2]} 27. Nd6 {[%clk 0:03:35]} 27... Bf3+ {[%clk
0:03:00]} 28. Kd2 {[%clk 0:03:32.1]} 28... Bg5+ {[%clk 0:02:49.2]} 29. Kd3
{[%clk 0:03:28.3]} 29... Rc7 {[%clk 0:02:24.2]} 30. Ra8+ {[%clk 0:03:25.2]}
30... Bxa8 {[%clk 0:02:22.5]} 0-1

[Event "Live Chess"]
[Site "Chess.com"]
[Date "2023.05.21"]
[Round "-"]
[White "Brooms1989"]
[Black "xx_blindpuffin_xx"]
[Result "0-1"]
[WhiteElo "1106"]
[BlackElo "2197"]
[TimeControl "300"]
[EndTime "16:41:23 PDT"]
[Termination "xx_blindpuffin_xx won by resignation"]

1. e4 {[%clk 0:04:57.1]} 1... e6 {[%clk 0:04:59.9]} 2. d4 {[%clk 0:04:55.7]}
2... d6 {[%clk 0:04:58.8]} 3. Nc3 {[%clk 0:04:53.7]} 3... Nd7 {[%clk 0:04:58.4]}
4. Nf3 {[%clk 0:04:52.1]} 4... Ngf6 {[%clk 0:04:56.3]} 5. e5 {[%clk 0:04:50.3]}
5... dxe5 {[%clk 0:04:56.2]} 6. dxe5 {[%clk 0:04:49.6]} 6... Ng8 {[%clk
0:04:45.9]} 7. Bc4 {[%clk 0:04:41]} 7... Ne7 {[%clk 0:04:44.7]} 8. O-O {[%clk
0:04:39.2]} 8... Nc6 {[%clk 0:04:42.8]} 9. Re1 {[%clk 0:04:34.8]} 9... Be7
{[%clk 0:04:39.2]} 10. Bf4 {[%clk 0:04:17.5]} 10... O-O {[%clk 0:04:37.6]} 11.
Bd3 {[%clk 0:04:08.4]} 11... Nc5 {[%clk 0:04:30.2]} 12. Qd2 {[%clk 0:03:54.6]}
12... Nxd3 {[%clk 0:04:27.2]} 13. cxd3 {[%clk 0:03:49.2]} 13... b6 {[%clk
0:04:26.3]} 14. d4 {[%clk 0:03:46.6]} 14... Bb7 {[%clk 0:04:23.6]} 15. h4 {[%clk
0:03:31.9]} 15... Nb4 {[%clk 0:02:58.8]} 16. a3 {[%clk 0:03:04.5]} 16... Nd5
{[%clk 0:02:53.5]} 17. Nxd5 {[%clk 0:02:59.4]} 17... Qxd5 {[%clk 0:02:41.2]} 18.
Bg5 {[%clk 0:02:37.2]} 18... Bxg5 {[%clk 0:02:38.1]} 19. hxg5 {[%clk 0:02:37.1]}
19... Rfd8 {[%clk 0:02:33.8]} 20. Rac1 {[%clk 0:02:28.6]} 20... c5 {[%clk
0:02:32.6]} 21. Re2 {[%clk 0:02:12.6]} 21... cxd4 {[%clk 0:02:30.5]} 22. Rc7
{[%clk 0:02:03.8]} 22... Rac8 {[%clk 0:02:28.2]} 23. Rxc8 {[%clk 0:01:56.1]}
23... Rxc8 {[%clk 0:02:17.1]} 24. Qc2 {[%clk 0:01:46.5]} 24... Rxc2 {[%clk
0:02:15]} 0-1

[Event "Live Chess"]
[Site "Chess.com"]
[Date "2023.05.21"]
[Round "-"]
[White "Shepherds_Pie"]
[Black "nigelst"]
[Result "1-0"]
[WhiteElo "1927"]
[BlackElo "1790"]
[TimeControl "300"]
[EndTime "16:41:26 PDT"]
[Termination "Shepherds_Pie won on time"]

1. c4 {[%clk 0:04:58.1]} 1... e5 {[%clk 0:04:58.5]} 2. Nc3 {[%clk 0:04:56.7]}
2... Nf6 {[%clk 0:04:57.9]} 3. Nf3 {[%clk 0:04:55.7]} 3... Nc6 {[%clk
0:04:55.7]} 4. d4 {[%clk 0:04:53]} 4... exd4 {[%clk 0:04:53.1]} 5. Nd5 {[%clk
0:04:51.7]} 5... Bc5 {[%clk 0:04:43.2]} 6. a3 {[%clk 0:04:49.1]} 6... a6 {[%clk
0:04:40.8]} 7. Bg5 {[%clk 0:04:47.4]} 7... O-O {[%clk 0:04:35.5]} 8. Qc2 {[%clk
0:04:42.4]} 8... Be7 {[%clk 0:04:33.1]} 9. Nxe7+ {[%clk 0:04:38.5]} 9... Qxe7
{[%clk 0:04:30.9]} 10. g3 {[%clk 0:04:29.3]} 10... Qe4 {[%clk 0:04:28]} 11. Qxe4
{[%clk 0:04:21.6]} 11... Nxe4 {[%clk 0:04:26.9]} 12. Bf4 {[%clk 0:04:20.6]}
12... d6 {[%clk 0:04:25]} 13. Bg2 {[%clk 0:04:19.1]} 13... f5 {[%clk 0:04:16.9]}
14. O-O {[%clk 0:04:16.4]} 14... Be6 {[%clk 0:04:12]} 15. Rac1 {[%clk 0:04:14]}
15... Rae8 {[%clk 0:04:02.3]} 16. Rfd1 {[%clk 0:04:10.1]} 16... h6 {[%clk
0:04:00]} 17. h4 {[%clk 0:03:57.6]} 17... Kh7 {[%clk 0:03:40.4]} 18. Nxd4 {[%clk
0:03:55.3]} 18... Nxd4 {[%clk 0:03:37.1]} 19. Rxd4 {[%clk 0:03:54]} 19... Nc5
{[%clk 0:03:34.5]} 20. Rcd1 {[%clk 0:03:43.8]} 20... Nb3 {[%clk 0:03:29.1]} 21.
R4d3 {[%clk 0:03:40.7]} 21... Nc5 {[%clk 0:03:27.9]} 22. Rc3 {[%clk 0:03:37.3]}
22... Na4 {[%clk 0:03:23.3]} 23. Rc2 {[%clk 0:03:35.6]} 23... Nc5 {[%clk
0:03:06.9]} 24. b4 {[%clk 0:03:32.4]} 24... Ne4 {[%clk 0:03:03.3]} 25. Rd4
{[%clk 0:03:22.4]} 25... g5 {[%clk 0:03:00]} 26. hxg5 {[%clk 0:03:18.6]} 26...
hxg5 {[%clk 0:02:59]} 27. Bc1 {[%clk 0:03:17.4]} 27... Kg6 {[%clk 0:02:58.1]}
28. Bb2 {[%clk 0:03:14]} 28... Nf6 {[%clk 0:02:49]} 29. Bxb7 {[%clk 0:03:00.5]}
29... c5 {[%clk 0:02:30.1]} 30. bxc5 {[%clk 0:02:56.5]} 30... dxc5 {[%clk
0:02:29.2]} 31. Rd6 {[%clk 0:02:54.5]} 31... a5 {[%clk 0:02:25.9]} 32. Rcd2
{[%clk 0:02:33.9]} 32... Ne4 {[%clk 0:02:23.8]} 33. Bxe4 {[%clk 0:02:31.6]}
33... fxe4 {[%clk 0:02:22.7]} 34. Ra6 {[%clk 0:02:25.6]} 34... Kf5 {[%clk
0:02:18.3]} 35. e3 {[%clk 0:02:17.5]} 35... Bxc4 {[%clk 0:02:14.3]} 36. Rxa5
{[%clk 0:02:16.3]} 36... Rc8 {[%clk 0:01:59]} 37. Rc2 {[%clk 0:02:12.5]} 37...
Bd3 {[%clk 0:01:50.9]} 38. Rcxc5+ {[%clk 0:02:10.5]} 38... Kg4 {[%clk
0:01:48.3]} 39. Rxg5+ {[%clk 0:02:07.8]} 39... Kf3 {[%clk 0:01:47.5]} 40. Raf5+
{[%clk 0:02:00.8]} 40... Rxf5 {[%clk 0:01:27.4]} 41. Rxf5+ {[%clk 0:01:59.3]}
41... Kg4 {[%clk 0:01:25.9]} 42. Rf4+ {[%clk 0:01:56.6]} 42... Kg5 {[%clk
0:01:21.4]} 43. Kg2 {[%clk 0:01:46.2]} 43... Rc2 {[%clk 0:01:16.1]} 44. Bf6+
{[%clk 0:01:41.5]} 44... Kg6 {[%clk 0:01:13.7]} 45. Bd4 {[%clk 0:01:38.5]} 45...
Rc1 {[%clk 0:01:11.7]} 46. g4 {[%clk 0:01:30.9]} 46... Bf1+ {[%clk 0:01:08.5]}
47. Kg3 {[%clk 0:01:29.3]} 47... Bd3 {[%clk 0:00:58.6]} 48. Rf6+ {[%clk
0:01:26]} 48... Kh7 {[%clk 0:00:50.9]} 49. Kf4 {[%clk 0:01:23.3]} 49... Rf1
{[%clk 0:00:38.5]} 50. Kg5 {[%clk 0:01:21.5]} 50... Bc4 {[%clk 0:00:32]} 51. Rf8
{[%clk 0:01:18.4]} 51... Bg8 {[%clk 0:00:23.8]} 52. Rf6 {[%clk 0:01:15.3]} 52...
Rh1 {[%clk 0:00:16.8]} 53. Ra6 {[%clk 0:01:03.9]} 53... Bd5 {[%clk 0:00:12.4]}
54. Ra7+ {[%clk 0:01:01.8]} 54... Kg8 {[%clk 0:00:10.7]} 55. Kf6 {[%clk
0:00:56.8]} 55... Rh6+ {[%clk 0:00:08.3]} 56. Ke5 {[%clk 0:00:54]} 56... Ba2
{[%clk 0:00:04.3]} 57. g5 {[%clk 0:00:51.8]} 57... Rc6 {[%clk 0:00:01.2]} 58.
Kxe4 {[%clk 0:00:47.1]} 1-0

[Event "Live Chess"]
[Site "Chess.com"]
[Date "2023.05.21"]
[Round "-"]
[White "Singapourfeuj"]
[Black "EdenHazard8"]
[Result "1-0"]
[WhiteElo "2207"]
[BlackElo "1990"]
[TimeControl "300"]
[EndTime "16:41:28 PDT"]
[Termination "Singapourfeuj won by resignation"]

1. d4 {[%clk 0:04:59.4]} 1... Nf6 {[%clk 0:04:58.3]} 2. Nf3 {[%clk 0:04:58.6]}
2... d6 {[%clk 0:04:57]} 3. g3 {[%clk 0:04:57.7]} 3... g6 {[%clk 0:04:56.3]} 4.
Bg2 {[%clk 0:04:57.1]} 4... Bg7 {[%clk 0:04:55.8]} 5. O-O {[%clk 0:04:56.3]}
5... O-O {[%clk 0:04:55.2]} 6. Re1 {[%clk 0:04:55.6]} 6... Nbd7 {[%clk
0:04:54.7]} 7. e4 {[%clk 0:04:54.3]} 7... e5 {[%clk 0:04:53.7]} 8. a4 {[%clk
0:04:53.3]} 8... a5 {[%clk 0:04:51.1]} 9. h3 {[%clk 0:04:52.4]} 9... exd4 {[%clk
0:04:49.6]} 10. Nxd4 {[%clk 0:04:51.3]} 10... Re8 {[%clk 0:04:49]} 11. Nc3
{[%clk 0:04:50]} 11... Nc5 {[%clk 0:04:47.6]} 12. Bg5 {[%clk 0:04:46.3]} 12...
h6 {[%clk 0:04:45.5]} 13. Bf4 {[%clk 0:04:44.1]} 13... Nfd7 {[%clk 0:04:38.3]}
14. Kh2 {[%clk 0:04:41.8]} 14... Ne5 {[%clk 0:04:37.1]} 15. Nd5 {[%clk
0:04:37.4]} 15... Nc6 {[%clk 0:04:28.8]} 16. c3 {[%clk 0:04:33.9]} 16... Ne5
{[%clk 0:04:21.9]} 17. Bxe5 {[%clk 0:04:18.8]} 17... dxe5 {[%clk 0:04:20.2]} 18.
Nb5 {[%clk 0:04:10.6]} 18... Na6 {[%clk 0:04:08.6]} 19. Ndxc7 {[%clk 0:04:07.4]}
19... Nxc7 {[%clk 0:04:04.4]} 20. Qxd8 {[%clk 0:04:06]} 20... Rxd8 {[%clk
0:04:04.3]} 21. Nxc7 {[%clk 0:04:05]} 21... Rb8 {[%clk 0:04:03.2]} 22. Nd5
{[%clk 0:04:03.3]} 22... Be6 {[%clk 0:04:01.5]} 23. Red1 {[%clk 0:04:01.8]}
23... f5 {[%clk 0:03:56.3]} 24. exf5 {[%clk 0:03:58.8]} 24... gxf5 {[%clk
0:03:56.2]} 25. b4 {[%clk 0:03:51.8]} 25... e4 {[%clk 0:03:54.5]} 26. Nf4 {[%clk
0:03:47.3]} 26... Bf7 {[%clk 0:03:48.3]} 27. bxa5 {[%clk 0:03:40.4]} 27... Bxc3
{[%clk 0:03:46]} 28. Rxd8+ {[%clk 0:03:37.2]} 28... Rxd8 {[%clk 0:03:44]} 29.
Rb1 {[%clk 0:03:36.2]} 29... Rd7 {[%clk 0:03:33.6]} 30. Rb5 {[%clk 0:03:32]}
30... Bc4 {[%clk 0:03:13.3]} 31. Rxf5 {[%clk 0:03:29.3]} 31... Bb3 {[%clk
0:03:12.5]} 32. Bxe4 {[%clk 0:03:25.1]} 32... Bxa4 {[%clk 0:03:10.1]} 33. Nd5
{[%clk 0:03:21.6]} 33... Bd4 {[%clk 0:03:08.8]} 34. Nf6+ {[%clk 0:03:13.8]}
34... Bxf6 {[%clk 0:03:06.5]} 35. Rxf6 {[%clk 0:03:13.2]} 35... Rd2 {[%clk
0:03:02.3]} 36. Kg2 {[%clk 0:03:11.8]} 36... Bb5 {[%clk 0:02:53.6]} 37. Bxb7
{[%clk 0:03:08.5]} 37... Kg7 {[%clk 0:02:50.8]} 38. Rf5 {[%clk 0:03:04.4]} 38...
Be2 {[%clk 0:02:47.7]} 39. a6 {[%clk 0:03:02.2]} 39... Ra2 {[%clk 0:02:46.5]}
40. h4 {[%clk 0:02:59.3]} 40... Ra5 {[%clk 0:02:45.4]} 41. Rxa5 {[%clk
0:02:57.6]} 1-0

[Event "Live Chess"]
[Site "Chess.com"]
[Date "2023.05.21"]
[Round "-"]
[White "WelshTiger"]
[Black "alanmike75"]
[Result "1-0"]
[WhiteElo "2360"]
[BlackElo "1543"]
[TimeControl "300"]
[EndTime "16:41:41 PDT"]
[Termination "WelshTiger won by resignation"]

1. e4 {[%clk 0:04:45.3]} 1... e5 {[%clk 0:04:58.7]} 2. Nf3 {[%clk 0:04:43.9]}
2... Nc6 {[%clk 0:04:57.7]} 3. d4 {[%clk 0:04:42.4]} 3... exd4 {[%clk
0:04:55.6]} 4. Bc4 {[%clk 0:04:41.7]} 4... Nf6 {[%clk 0:04:51]} 5. e5 {[%clk
0:04:41]} 5... d5 {[%clk 0:04:48.7]} 6. Bb5 {[%clk 0:04:40.3]} 6... Ne4 {[%clk
0:04:46.7]} 7. Nxd4 {[%clk 0:04:38.3]} 7... Bd7 {[%clk 0:04:44.2]} 8. Bxc6
{[%clk 0:04:37]} 8... bxc6 {[%clk 0:04:42.2]} 9. O-O {[%clk 0:04:36.3]} 9... Bc5
{[%clk 0:04:40.5]} 10. f3 {[%clk 0:04:32.5]} 10... Ng5 {[%clk 0:04:32.2]} 11.
Be3 {[%clk 0:04:31.2]} 11... Ne6 {[%clk 0:04:28.9]} 12. f4 {[%clk 0:04:20.2]}
12... O-O {[%clk 0:04:22]} 13. f5 {[%clk 0:04:17.1]} 13... Nxd4 {[%clk
0:04:20.4]} 14. Bxd4 {[%clk 0:04:17]} 14... Bxd4+ {[%clk 0:04:19.2]} 15. Qxd4
{[%clk 0:04:15.7]} 15... Qg5 {[%clk 0:04:12.5]} 16. h4 {[%clk 0:04:06.2]} 16...
Qh5 {[%clk 0:04:00]} 17. f6 {[%clk 0:04:02.7]} 17... g6 {[%clk 0:03:46.3]} 18.
Nd2 {[%clk 0:03:58.3]} 18... c5 {[%clk 0:03:34.9]} 19. Qf4 {[%clk 0:03:53.1]}
19... Bc6 {[%clk 0:03:25.1]} 20. Nf3 {[%clk 0:03:44.4]} 20... d4 {[%clk
0:03:22.5]} 21. Ng5 {[%clk 0:03:43.3]} 21... Rae8 {[%clk 0:03:09.2]} 22. Rae1
{[%clk 0:03:40.9]} 22... h6 {[%clk 0:02:54]} 23. Nxf7 {[%clk 0:03:40]} 23...
Rxf7 {[%clk 0:02:46.8]} 24. e6 {[%clk 0:03:35.2]} 24... Rxe6 {[%clk 0:02:37.6]}
25. Rxe6 {[%clk 0:03:32.8]} 25... Qd5 {[%clk 0:02:35.9]} 26. Re2 {[%clk
0:03:22.6]} 26... Kh7 {[%clk 0:02:27.5]} 27. Qe5 {[%clk 0:03:13.6]} 27... Qc4
{[%clk 0:02:13.7]} 28. Ref2 {[%clk 0:03:12.6]} 28... d3 {[%clk 0:01:57.8]} 29.
cxd3 {[%clk 0:03:09.8]} 29... Qxd3 {[%clk 0:01:56.6]} 30. h5 {[%clk 0:03:09.2]}
1-0